bitfinex/quotes_BTCUSD_20241201
["timestamp","ask_amount","ask_price","bid_price","bid_amount"]
[1733019990824,0.00092351,96285.0,96284.0,0.89703645]
[1733019990995,0.00092351,96285.0,96284.0,0.4836541]
[1733019991382,0.00092351,96285.0,96284.0,0.89703645]
[1733019991959,0.00092351,96285.0,96284.0,0.4836541]
[1733019997804,0.07952351,96285.0,96284.0,0.4836541]
[1733019998655,0.07952351,96285.0,96284.0,0.89717557]
[1733019998882,0.07952351,96285.0,96284.0,0.4836541]
[1733019999701,0.07952351,96285.0,96284.0,0.3336541]
[1733020000044,0.13848351,96285.0,96284.0,0.3336541]
[1733020000784,0.13848351,96285.0,96284.0,0.56705098]
[1733020000995,0.13848351,96285.0,96284.0,0.32874111]
[1733020001210,0.13848351,96285.0,96284.0,0.32464707]
[1733020001479,0.14848351,96285.0,96284.0,0.32464707]
[1733020001712,0.14848351,96285.0,96284.0,0.51134491]
[1733020001965,0.14848351,96285.0,96284.0,0.51234491]
[1733020002209,0.14848351,96285.0,96284.0,0.51734491]
[1733020002699,0.14848351,96285.0,96284.0,0.31664707]
[1733020003158,0.14848351,96285.0,96284.0,0.31864707]
[1733020003589,0.14848351,96285.0,96284.0,0.31664707]
[1733020003857,0.14848351,96285.0,96284.0,0.31764707]
[1733020004241,0.14848351,96285.0,96284.0,0.32664707]
[1733020004455,0.14848351,96285.0,96284.0,0.31764707]
[1733020004818,0.14848351,96285.0,96284.0,0.31864707]
[1733020005656,0.14848351,96285.0,96284.0,0.31764707]
[1733020006071,0.13848351,96285.0,96284.0,0.31664707]
[1733020006312,0.13852351,96285.0,96284.0,0.31664707]
[1733020006529,0.14848351,96285.0,96284.0,0.31664707]
[1733020007336,0.14848351,96285.0,96284.0,0.31764707]
[1733020007799,0.14848351,96285.0,96284.0,0.31664707]
[1733020008019,0.14848351,96285.0,96284.0,0.31864707]
[1733020008236,0.14848351,96285.0,96284.0,0.31664707]
[1733020008671,0.08952351,96285.0,96284.0,0.31864707]
[1733020008877,0.09948351,96285.0,96284.0,0.31664707]
[1733020009079,0.09948351,96285.0,96284.0,0.32164707]
[1733020009491,0.08952351,96285.0,96284.0,0.32164707]
[1733020009706,0.09948351,96285.0,96284.0,0.32164707]
[1733020009912,0.14458351,96285.0,96284.0,0.32264707]
[1733020010349,0.14458351,96285.0,96284.0,0.31664707]
[1733020010761,0.14458351,96285.0,96284.0,0.32364707]
[1733020011178,0.14458351,96285.0,96284.0,0.00906707]
[1733020011381,0.14458351,96285.0,96284.0,0.00506707]
[1733020011611,0.14458351,96285.0,96284.0,0.00016111]
[1733020012970,0.14458351,96285.0,96284.0,0.00216111]
[1733020013919,0.29642233,96285.0,96284.0,0.00216111]
[1733020014147,0.29458351,96285.0,96284.0,0.00016111]
[1733020014381,0.30579733,96285.0,96284.0,0.00116111]
[1733020014882,0.30579733,96285.0,96284.0,0.00016111]
[1733020015124,0.30579733,96285.0,96284.0,0.00116111]
[1733020021346,0.30579733,96285.0,96284.0,0.00016111]
[1733020021546,0.30679733,96285.0,96284.0,0.00016111]
[1733020021959,0.30579733,96285.0,96284.0,0.00016111]
[1733020022370,0.30779733,96285.0,96284.0,0.00016111]
[1733020022864,0.30579733,96285.0,96284.0,0.00016111]
[1733020023280,0.30679733,96285.0,96284.0,0.00016111]
[1733020024160,0.30779733,96285.0,96284.0,0.00016111]
[1733020024365,0.30679733,96285.0,96284.0,0.00016111]
[1733020024753,0.30779733,96285.0,96284.0,0.00016111]
[1733020027969,0.30679733,96285.0,96284.0,0.00016111]
[1733020028386,0.29683733,96285.0,96284.0,0.00016111]
[1733020028804,0.29783733,96285.0,96284.0,0.00016111]
[1733020028987,0.29683733,96285.0,96284.0,0.00016111]
[1733020029209,0.29583733,96285.0,96284.0,0.00016111]
[1733020029429,0.03309733,96285.0,96284.0,0.00016111]
[1733020029635,0.03493615,96285.0,96284.0,0.00016111]
[1733020030473,0.03393615,96285.0,96284.0,0.00016111]
[1733020031114,0.03393615,96285.0,96284.0,0.00216111]
[1733020031941,0.03393615,96285.0,96284.0,0.00016111]
[1733020032392,0.03493615,96285.0,96284.0,0.00016111]
[1733020033439,0.03393615,96285.0,96284.0,0.00016111]
[1733020033639,0.03493615,96285.0,96284.0,0.00016111]
[1733020034332,0.16153615,96285.0,96284.0,0.00016111]
[1733020034555,0.31153615,96285.0,96284.0,0.00016111]
[1733020034788,0.30869733,96285.0,96284.0,0.00216111]
[1733020035022,0.207787,96252.0,96251.0,0.0017268]
[1733020035258,0.217747,96252.0,96251.0,0.0017268]
[1733020036726,0.227747,96252.0,96251.0,0.0067268]
[1733020037909,0.227747,96252.0,96251.0,0.0017268]
[1733020038263,0.227747,96252.0,96251.0,0.0057268]
[1733020038725,0.227747,96252.0,96251.0,0.0017268]
[1733020039149,0.227747,96252.0,96251.0,0.0137268]
[1733020040654,0.23887381,96252.0,96251.0,0.0137268]
[1733020041084,0.207787,96252.0,96251.0,0.0137268]
[1733020041308,0.217747,96252.0,96251.0,0.0137268]
[1733020042451,0.227747,96252.0,96251.0,0.0137268]
[1733020042657,0.217747,96252.0,96251.0,0.0137268]
[1733020043482,0.00996,96253.0,96251.0,0.0137268]
[1733020044092,0.00996,96256.0,96251.0,0.0137268]
[1733020044313,0.227735,96258.0,96251.0,0.0057268]
[1733020044539,0.00996,96253.0,96251.0,0.0057268]
[1733020044774,0.00996,96257.0,96251.0,0.0087268]
[1733020045016,0.00996,96263.0,96251.0,0.0087268]
[1733020045264,0.00996,96261.0,96253.0,0.18618648]
[1733020045495,0.20777,96260.0,96253.0,0.18618648]
[1733020045755,0.20777,96260.0,96254.0,0.19097841]
[1733020045986,0.20777,96260.0,96255.0,0.18618648]
[1733020046230,0.20777,96260.0,96254.0,0.19097841]
[1733020046463,0.20777,96260.0,96256.0,0.00479034]
[1733020046684,0.20777,96260.0,96255.0,0.00479498]
[1733020046925,0.20777,96260.0,96257.0,0.00479339]
[1733020047140,0.20777,96260.0,96256.0,0.00479419]
[1733020047360,0.41554,96260.0,96258.0,0.0047926]
[1733020047559,0.41554,96260.0,96257.0,0.00479339]
[1733020047963,0.41554,96260.0,96253.0,0.001]
[1733020048203,0.41554,96260.0,96258.0,0.0047926]
[1733020048374,0.41554,96260.0,96256.0,0.001]
[1733020048811,0.41554,96260.0,96252.0,0.1864155]
[1733020049013,0.41554,96260.0,96257.0,0.00479339]
[1733020049263,0.41554,96260.0,96252.0,0.1864155]
[1733020049264,0.20778,96256.0,96253.0,0.001]
[1733020049537,0.217743,96254.0,96253.0,0.004]
[1733020049749,0.227743,96254.0,96253.0,0.004]
[1733020050359,0.435526,96254.0,96251.0,0.0017268]
[1733020050566,0.207787,96252.0,96251.0,0.0017268]
[1733020050770,0.20962582,96252.0,96251.0,0.0017268]
[1733020051403,0.21958582,96252.0,96251.0,0.0017268]
[1733020051610,0.227747,96252.0,96251.0,0.0017268]
[1733020052228,0.227747,96252.0,96251.0,0.0057268]
[1733020052839,0.227747,96252.0,96251.0,0.0137268]
[1733020055630,0.353147,96252.0,96251.0,0.0137268]
[1733020056497,0.353147,96252.0,96251.0,0.0057268]
[1733020056695,0.353147,96252.0,96251.0,0.0067268]
[1733020057116,0.503147,96252.0,96251.0,0.0027268]
[1733020057322,0.503147,96252.0,96251.0,8e-07]
[1733020058271,0.01996,96251.0,96250.0,6e-07]
[1733020058479,0.29719882,96251.0,96250.0,2.5e-07]
[1733020058697,0.30536,96251.0,96250.0,2.5e-07]
[1733020059795,0.30836,96251.0,96250.0,2.5e-07]
[1733020060666,0.30536,96251.0,96250.0,2.5e-07]
[1733020060814,0.31036,96251.0,96250.0,0.00100025]
[1733020061474,0.30836,96251.0,96250.0,2.5e-07]
[1733020061956,0.31036,96251.0,96250.0,2.5e-07]
[1733020063035,0.30036,96251.0,96250.0,2.5e-07]
[1733020063270,0.31036,96251.0,96250.0,2.5e-07]
[1733020063724,0.30036,96251.0,96250.0,2.5e-07]
[1733020063951,0.31036,96251.0,96250.0,2.5e-07]
[1733020068898,0.31036,96251.0,96250.0,0.00172645]
[1733020073164,0.2427,96251.0,96250.0,0.00172645]
[1733020073412,0.25266,96251.0,96250.0,0.00172645]
[1733020074213,0.25066,96251.0,96250.0,0.00172645]
[1733020074647,0.30256,96251.0,96250.0,0.00172645]
[1733020075030,0.30056,96251.0,96250.0,0.00172645]
[1733020075314,0.29756,96251.0,96250.0,0.0017262]
[1733020075772,0.30056,96251.0,96250.0,0.0027262]
[1733020075990,0.29756,96251.0,96250.0,0.0017262]
[1733020076211,0.29756,96251.0,96250.0,0.0027262]
[1733020076212,0.30056,96251.0,96250.0,0.0027262]
[1733020076670,0.30256,96251.0,96250.0,0.0027262]
[1733020077095,0.25066,96251.0,96250.0,0.0027262]
[1733020077307,0.17496,96251.0,96250.0,0.0027262]
[1733020077512,0.17679882,96251.0,96250.0,0.0027262]
[1733020078131,0.17479882,96251.0,96250.0,0.0027262]
[1733020078542,0.17679882,96251.0,96250.0,0.0027262]
[1733020078714,0.17379882,96251.0,96250.0,0.0017262]
[1733020079134,0.17679882,96251.0,96250.0,0.0017262]
[1733020079362,0.17379882,96251.0,96250.0,0.0017262]
[1733020079800,0.17679882,96251.0,96250.0,0.0027262]
[1733020080012,0.17479882,96251.0,96250.0,0.0027262]
[1733020080512,0.17679882,96251.0,96250.0,0.0027262]
[1733020081289,0.17766222,96251.0,96250.0,0.0027262]
[1733020084748,0.0258234,96251.0,96250.0,0.0027262]
[1733020085045,0.02766222,96251.0,96250.0,0.0027262]
[1733020085455,0.02466222,96251.0,96250.0,0.0017262]
[1733020086442,0.02566222,96251.0,96250.0,0.0017262]
[1733020086708,0.02366222,96251.0,96250.0,0.0017262]
[1733020086937,0.02566222,96251.0,96250.0,0.0017262]
[1733020087390,0.02366222,96251.0,96250.0,0.0017262]
[1733020087875,0.02466222,96251.0,96250.0,0.0017262]
[1733020089592,0.02266222,96251.0,96250.0,0.0017262]
[1733020090018,0.02266222,96251.0,96250.0,0.0027262]
[1733020090932,0.01266222,96251.0,96250.0,0.0027262]
[1733020091160,0.02266222,96251.0,96250.0,0.0027262]
[1733020092108,0.01266222,96251.0,96250.0,0.0791262]
[1733020092327,0.0108234,96251.0,96250.0,0.0791262]
[1733020093223,0.0108234,96251.0,96250.0,0.08377852]
[1733020096477,0.0108234,96251.0,96250.0,0.00737852]
[1733020096701,0.02266222,96251.0,96250.0,0.00737852]
[1733020096925,0.02266222,96251.0,96250.0,0.0027262]
[1733020097160,0.0208234,96251.0,96250.0,0.0027262]
[1733020097362,0.0208234,96251.0,96250.0,0.0017262]
[1733020097570,0.0218234,96251.0,96250.0,0.0017262]
[1733020097790,0.0208234,96251.0,96250.0,0.0017262]
[1733020098011,0.0208234,96251.0,96250.0,0.0011712]
[1733020098213,0.0208234,96251.0,96250.0,0.0021712]
[1733020098404,0.0108234,96251.0,96250.0,0.0021712]
[1733020098616,0.02266222,96251.0,96250.0,0.0021712]
[1733020098833,0.02366222,96251.0,96250.0,0.0021712]
[1733020099189,0.02266222,96251.0,96250.0,0.0021712]
[1733020100929,0.02266222,96251.0,96250.0,0.0011712]
[1733020101131,0.02366222,96251.0,96250.0,0.0011712]
[1733020102209,0.25676222,96251.0,96250.0,0.0011712]
[1733020102431,0.2549234,96251.0,96250.0,0.0011712]
[1733020102654,0.2559234,96251.0,96250.0,0.0011712]
[1733020105911,0.27637136,96251.0,96250.0,0.0011712]
[1733020106777,0.1728234,96251.0,96250.0,0.0011712]
[1733020106996,0.17466222,96251.0,96250.0,0.0011712]
[1733020107438,0.16470222,96251.0,96250.0,0.0011712]
[1733020107641,0.17466222,96251.0,96250.0,0.0011712]
[1733020108062,0.16470222,96251.0,96250.0,0.0011712]
[1733020108256,0.02466222,96251.0,96250.0,0.0011712]
[1733020109566,0.02266222,96251.0,96250.0,0.0011712]
[1733020109803,0.02266222,96251.0,96250.0,0.0021712]
[1733020110012,0.02266222,96251.0,96250.0,0.0011712]
[1733020110456,0.02266222,96251.0,96250.0,0.0021712]
[1733020110662,0.02266222,96251.0,96250.0,0.0011712]
[1733020111002,0.02266222,96251.0,96250.0,0.0021712]
[1733020111866,0.00270222,96251.0,96250.0,0.0021712]
[1733020112070,0.0008634,96251.0,96250.0,0.0472712]
[1733020112300,0.0008634,96251.0,96250.0,0.1242712]
[1733020112718,0.0108234,96251.0,96250.0,0.12892606]
[1733020115847,0.0108234,96251.0,96250.0,0.05192606]
[1733020119324,0.02266222,96251.0,96250.0,0.00682606]
[1733020119756,0.02266222,96251.0,96250.0,0.0011712]
[1733020120207,0.02266222,96251.0,96250.0,0.0031712]
[1733020120837,0.02266222,96251.0,96250.0,0.0011712]
[1733020121275,0.02566222,96251.0,96250.0,0.0011712]
[1733020121493,0.02266222,96251.0,96250.0,0.0011712]
[1733020122630,0.02466222,96251.0,96250.0,0.0011712]
[1733020122841,0.02766222,96251.0,96250.0,0.0011712]
[1733020133839,0.17766222,96251.0,96250.0,0.0011712]
[1733020142611,0.02766222,96251.0,96250.0,0.0011712]
[1733020143501,0.02566222,96251.0,96250.0,0.0011712]
[1733020143710,0.02266222,96251.0,96250.0,0.0011712]
[1733020143923,0.02466222,96251.0,96250.0,0.0011712]
[1733020144367,0.02366222,96251.0,96250.0,0.0011712]
[1733020145127,0.00270222,96251.0,96250.0,0.0011712]
[1733020145357,0.02266222,96251.0,96250.0,0.0021712]
[1733020145566,0.01270222,96251.0,96250.0,0.0021712]
[1733020145933,0.00270222,96251.0,96250.0,0.0021712]
[1733020146145,0.01270222,96251.0,96250.0,0.0021712]
[1733020146345,0.0208234,96251.0,96250.0,0.0021712]
[1733020146559,0.0108234,96251.0,96250.0,0.0479712]
[1733020146764,0.0208234,96251.0,96250.0,0.1248712]
[1733020147168,0.0208234,96251.0,96250.0,0.12952228]
[1733020148215,0.0208234,96251.0,96250.0,0.12852228]
[1733020148419,0.0208234,96251.0,96250.0,0.12952228]
[1733020149257,0.0208234,96251.0,96250.0,0.12852228]
[1733020149679,0.0208234,96251.0,96250.0,0.12952228]
[1733020149883,0.0208234,96251.0,96250.0,0.12852228]
[1733020150089,0.0208234,96251.0,96250.0,0.12952228]
[1733020150948,0.0208234,96251.0,96250.0,0.13052228]
[1733020151586,0.0208234,96251.0,96250.0,0.12952228]
[1733020152501,0.0208234,96251.0,96250.0,0.13352228]
[1733020154079,0.02266222,96251.0,96250.0,0.01082228]
[1733020154509,0.02266222,96251.0,96250.0,0.0061712]
[1733020155161,0.02266222,96251.0,96250.0,0.0021712]
[1733020155371,0.02366222,96251.0,96250.0,0.0021712]
[1733020155578,0.02266222,96251.0,96250.0,0.0021712]
[1733020156001,0.02566222,96251.0,96250.0,0.0021712]
[1733020156403,0.02566222,96251.0,96250.0,0.0011712]
[1733020156612,0.02866222,96251.0,96250.0,0.0011712]
[1733020156818,0.02966222,96251.0,96250.0,0.0011712]
[1733020157023,0.05074992,96251.0,96250.0,0.0011712]
[1733020157236,0.19974992,96251.0,96250.0,0.0011712]
[1733020157659,0.19574992,96251.0,96250.0,0.0011712]
[1733020158078,0.19374992,96251.0,96250.0,0.0011712]
[1733020158498,0.19574992,96251.0,96250.0,0.0011712]
[1733020158696,0.19874992,96251.0,96250.0,0.0011712]
[1733020164945,0.0258234,96251.0,96250.0,0.0011712]
[1733020165157,0.0258234,96251.0,96250.0,0.0498712]
[1733020165410,0.0228234,96251.0,96250.0,0.0498712]
[1733020165843,0.0248234,96251.0,96250.0,0.0498712]
[1733020166007,0.0128234,96251.0,96250.0,0.0498712]
[1733020166268,0.0208234,96251.0,96250.0,0.0508712]
[1733020166450,0.0208234,96251.0,96250.0,0.0498712]
[1733020166649,0.0228234,96251.0,96250.0,0.05452559]
[1733020166855,0.0228234,96251.0,96250.0,0.05852559]
[1733020167053,0.0208234,96251.0,96250.0,0.05852559]
[1733020167308,0.0208234,96251.0,96250.0,0.0548712]
[1733020168016,0.0108234,96251.0,96250.0,0.0548712]
[1733020168516,0.0208234,96251.0,96250.0,0.05952559]
[1733020168737,0.0008634,96251.0,96250.0,0.13582559]
[1733020169226,0.0108234,96251.0,96250.0,0.13582559]
[1733020177481,0.0108234,96251.0,96250.0,0.05952559]
[1733020177739,0.0208234,96251.0,96250.0,0.01082559]
[1733020177977,0.02266222,96251.0,96250.0,0.01082559]
[1733020178225,0.02266222,96251.0,96250.0,0.0061712]
[1733020178909,0.02266222,96251.0,96250.0,0.0021712]
[1733020179147,0.02266222,96251.0,96250.0,0.0041712]
[1733020179370,0.02266222,96251.0,96250.0,0.0021712]
[1733020179571,0.02266222,96251.0,96250.0,0.0011712]
[1733020180893,0.02366222,96251.0,96250.0,0.0011712]
[1733020181329,0.10536222,96251.0,96250.0,0.0011712]
[1733020181544,0.25536222,96251.0,96250.0,0.0011712]
[1733020181770,0.2555234,96251.0,96250.0,0.0011712]
[1733020181981,0.2585234,96251.0,96250.0,0.0011712]
[1733020182186,0.2555234,96251.0,96250.0,0.0011712]
[1733020182642,0.2585234,96251.0,96250.0,0.0011712]
[1733020183085,0.2565234,96251.0,96250.0,0.0011712]
[1733020183300,0.2585234,96251.0,96250.0,0.0011712]
[1733020197137,0.2485634,96251.0,96250.0,0.0011712]
[1733020197335,0.1758234,96251.0,96250.0,0.0011712]
[1733020197540,0.17766222,96251.0,96250.0,0.0011712]
[1733020198373,0.17466222,96251.0,96250.0,0.0011712]
[1733020198900,0.17766222,96251.0,96250.0,0.0011712]
[1733020199305,0.17566222,96251.0,96250.0,0.0011712]
[1733020199716,0.16570222,96251.0,96250.0,0.0011712]
[1733020200373,0.17566222,96251.0,96250.0,0.0011712]
[1733020200578,0.02566222,96251.0,96250.0,0.0011712]
[1733020200994,0.02766222,96251.0,96250.0,0.0011712]
[1733020202263,0.02566222,96251.0,96250.0,0.0011712]
[1733020202902,0.02366222,96251.0,96250.0,0.0011712]
[1733020203126,0.25176222,96251.0,96250.0,0.0011712]
[1733020203357,0.2499234,96251.0,96250.0,0.0011712]
[1733020204064,0.2489234,96251.0,96250.0,0.0011712]
[1733020204543,0.2529234,96251.0,96250.0,0.0011712]
[1733020204792,0.2509234,96251.0,96250.0,0.0011712]
[1733020205022,0.2509234,96251.0,96221.0,3e-07]
[1733020205023,0.217852,96222.0,96221.0,3e-07]
[1733020205284,0.217852,96222.0,96221.0,0.00059679]
[1733020206034,0.227812,96222.0,96221.0,0.00059679]
[1733020206502,0.227812,96222.0,96221.0,0.00659679]
[1733020207643,0.227812,96222.0,96221.0,0.00959679]
[1733020207923,0.23871279,96222.0,96221.0,0.00359679]
[1733020208181,0.23871279,96222.0,96221.0,0.00059679]
[1733020208625,0.31781279,96222.0,96221.0,0.00059679]
[1733020209326,0.23971279,96222.0,96221.0,0.00059679]
[1733020210218,0.21975279,96222.0,96221.0,0.00059679]
[1733020210462,0.228812,96222.0,96221.0,0.00059679]
[1733020210685,0.001,96222.0,96221.0,0.00059679]
[1733020210902,0.001,96222.0,96221.0,0.12909679]
[1733020211187,0.207842,96227.0,96221.0,0.12909679]
[1733020211408,0.001,96222.0,96221.0,0.12909679]
[1733020212110,0.207839,96229.0,96221.0,0.12909679]
[1733020212111,0.207839,96228.0,96221.0,0.12909679]
[1733020212325,0.207839,96228.0,96221.0,0.13309679]
[1733020212552,0.415679,96228.0,96221.0,0.13909679]
[1733020212748,0.207839,96228.0,96221.0,0.13309679]
[1733020213214,0.207839,96228.0,96227.0,0.03]
[1733020213478,0.207835,96230.0,96227.0,0.03]
[1733020213951,0.00183882,96230.0,96227.0,0.03]
[1733020214198,0.00996,96231.0,96227.0,0.03]
[1733020214436,0.41567,96230.0,96227.0,0.03]
[1733020214655,0.41567,96230.0,96227.0,0.034]
[1733020214893,0.41567,96230.0,96227.0,0.035]
[1733020215610,0.207835,96230.0,96227.0,0.035]
[1733020215796,0.41567,96230.0,96227.0,0.035]
[1733020217210,0.41567,96230.0,96227.0,0.034]
[1733020217708,0.41567,96230.0,96228.0,0.00453041]
[1733020217940,0.01183882,96229.0,96228.0,0.00453041]
[1733020218166,0.207839,96228.0,96227.0,0.036727]
[1733020218665,0.207839,96228.0,96227.0,0.03825236]
[1733020218909,0.207839,96228.0,96227.0,0.03625236]
[1733020220057,0.20967782,96228.0,96227.0,0.03625236]
[1733020220251,0.207839,96228.0,96227.0,0.03625236]
[1733020220480,0.20967782,96228.0,96227.0,0.04025236]
[1733020220929,0.207839,96228.0,96227.0,0.04025236]
[1733020221872,0.207839,96228.0,96227.0,0.04125236]
[1733020222766,0.217799,96228.0,96227.0,0.04125236]
[1733020224634,0.227799,96228.0,96227.0,0.04125236]
[1733020225132,0.227799,96228.0,96227.0,0.006727]
[1733020225590,0.227799,96228.0,96227.0,0.005727]
[1733020225840,0.228799,96228.0,96227.0,0.005727]
[1733020226071,0.228799,96228.0,96227.0,0.001727]
[1733020226758,0.24812457,96228.0,96227.0,0.001727]
[1733020229193,0.25945375,96228.0,96227.0,0.001727]
[1733020230083,0.53725375,96228.0,96227.0,0.001727]
[1733020231215,0.15,96227.0,96221.0,0.00059679]
[1733020231428,0.227812,96222.0,96221.0,0.00059679]
[1733020231654,0.32943757,96222.0,96221.0,0.00059679]
[1733020233851,0.33143757,96222.0,96221.0,0.00059679]
[1733020234257,0.1277,96213.0,96205.0,0.001725]
[1733020234479,0.01,96215.0,96203.0,0.00059707]
[1733020234480,0.01996,96204.0,96203.0,0.00059707]
[1733020234677,0.27282439,96204.0,96203.0,0.00086434]
[1733020234906,0.28098557,96204.0,96203.0,0.00086434]
[1733020235145,0.28095725,96204.0,96203.0,0.00086434]
[1733020236007,0.27095725,96204.0,96203.0,0.00086434]
[1733020236620,0.26275111,96204.0,96203.0,0.00086434]
[1733020237004,0.26675111,96204.0,96203.0,0.00086434]
[1733020237417,0.26775111,96204.0,96203.0,0.00086434]
[1733020237751,0.28415557,96204.0,96203.0,0.00086434]
[1733020237970,0.28315557,96204.0,96203.0,0.00086434]
[1733020238192,0.30245282,96204.0,96203.0,0.00086434]
[1733020238421,0.3084248,96204.0,96203.0,0.00086434]
[1733020238627,0.415786,96203.0,96197.0,0.2008624]
[1733020238840,0.00996,96201.0,96200.0,3.04458052]
[1733020239050,0.01179882,96201.0,96200.0,3.04458052]
[1733020239718,0.36969682,96201.0,96200.0,3.04458052]
[1733020239921,0.38712723,96201.0,96200.0,3.04458052]
[1733020240556,0.369858,96201.0,96200.0,3.04458052]
[1733020241822,0.371858,96201.0,96200.0,3.04458052]
[1733020242227,0.371858,96201.0,96200.0,3.04544382]
[1733020243102,0.381858,96201.0,96200.0,3.04544382]
[1733020243987,0.459758,96201.0,96200.0,3.04544382]
[1733020245422,0.506358,96201.0,96200.0,3.02003156]
[1733020245756,1.206358,96201.0,96200.0,3.02003156]
[1733020246392,1.216358,96201.0,96200.0,3.02003156]
[1733020246598,1.226358,96201.0,96200.0,3.02003156]
[1733020246804,1.24561161,96201.0,96200.0,3.02003156]
[1733020247903,1.226358,96201.0,96200.0,3.02003156]
[1733020248595,1.226358,96201.0,96200.0,2.97845156]
[1733020249047,1.24561296,96201.0,96200.0,2.97845156]
[1733020249270,1.24561296,96201.0,96200.0,2.96224128]
[1733020249749,1.226358,96201.0,96200.0,2.96224128]
[1733020249941,1.2456126,96201.0,96200.0,2.83872801]
[1733020250426,1.2156526,96201.0,96200.0,2.83872801]
[1733020250688,1.1890126,96201.0,96200.0,2.83872801]
[1733020251151,1.1690526,96201.0,96200.0,2.83872801]
[1733020251376,1.1670526,96201.0,96200.0,2.83872801]
[1733020251831,1.1690526,96201.0,96200.0,2.83872801]
[1733020252057,1.1890126,96201.0,96200.0,2.83872801]
[1733020252283,1.1870126,96201.0,96200.0,2.83872801]
[1733020252525,1.1650526,96201.0,96200.0,2.83872801]
[1733020252745,1.1670526,96201.0,96200.0,2.83872801]
[1733020252989,1.1870126,96201.0,96200.0,2.83872801]
[1733020253427,1.1890126,96201.0,96200.0,2.83872801]
[1733020253615,0.4910126,96201.0,96200.0,2.83872801]
[1733020255209,0.4910126,96201.0,96200.0,2.81793801]
[1733020255397,0.5010126,96201.0,96200.0,2.77635801]
[1733020255617,0.5010126,96201.0,96200.0,2.75556801]
[1733020256699,1.2476126,96201.0,96200.0,2.67240801]
[1733020256943,1.2476126,96201.0,96200.0,2.63082801]
[1733020257659,1.2476126,96201.0,96200.0,2.58924801]
[1733020257880,1.23719393,96201.0,96200.0,2.43961801]
[1733020258099,1.25648005,96201.0,96200.0,2.43961801]
[1733020258343,1.25848005,96201.0,96200.0,2.43961801]
[1733020258561,1.25448005,96201.0,96200.0,2.43961801]
[1733020258844,1.25248005,96201.0,96200.0,2.41882801]
[1733020259077,1.25448005,96201.0,96200.0,2.41882801]
[1733020259297,1.25648005,96201.0,96200.0,2.34895337]
[1733020259516,1.25648005,96201.0,96200.0,2.23312654]
[1733020259746,1.26148005,96201.0,96200.0,2.23312654]
[1733020260700,0.56148005,96201.0,96200.0,2.23312654]
[1733020262039,0.56148005,96201.0,96200.0,2.17075654]
[1733020262276,0.54219393,96201.0,96200.0,2.12917654]
[1733020263170,0.57439183,96201.0,96200.0,2.12917654]
[1733020263392,1.27439183,96201.0,96200.0,2.12917654]
[1733020263618,1.27439183,96201.0,96200.0,2.02833701]
[1733020263849,1.27439183,96201.0,96200.0,1.98675701]
[1733020264288,1.27439183,96201.0,96200.0,1.94517701]
[1733020264766,1.27039183,96201.0,96200.0,1.94517701]
[1733020265017,1.27239183,96201.0,96200.0,1.86201701]
[1733020265261,1.28139183,96201.0,96200.0,1.84222701]
[1733020265480,1.28311923,96201.0,96200.0,1.84222701]
[1733020265721,1.28311923,96201.0,96200.0,1.82143701]
[1733020266166,1.83111923,96201.0,96200.0,1.77985701]
[1733020266388,1.83111923,96201.0,96200.0,1.73827701]
[1733020267321,1.83111923,96201.0,96200.0,1.69669701]
[1733020267543,1.83111923,96201.0,96200.0,1.61560724]
[1733020267793,1.83111923,96201.0,96200.0,1.52259473]
[1733020268027,1.83111923,96201.0,96200.0,1.43003168]
[1733020268247,1.83111923,96201.0,96200.0,1.32053141]
[1733020268819,1.83111923,96201.0,96200.0,1.27895141]
[1733020269054,1.83111923,96201.0,96200.0,1.25816141]
[1733020269253,1.83111923,96201.0,96200.0,1.21658141]
[1733020269512,1.13111923,96201.0,96200.0,1.21658141]
[1733020269651,1.13111923,96201.0,96200.0,1.19579141]
[1733020270076,1.13111923,96201.0,96200.0,1.17500141]
[1733020270307,1.13111923,96201.0,96200.0,1.15421141]
[1733020270552,1.13111923,96201.0,96200.0,1.11263141]
[1733020271107,1.13111923,96201.0,96200.0,1.09184141]
[1733020271340,1.13111923,96201.0,96200.0,1.07105141]
[1733020271554,1.13111923,96201.0,96200.0,1.02947141]
[1733020271958,1.13111923,96201.0,96200.0,0.96280141]
[1733020272160,1.13111923,96201.0,96200.0,0.94201141]
[1733020272511,1.13111923,96201.0,96200.0,0.90043141]
[1733020272736,1.13111923,96201.0,96200.0,0.87964141]
[1733020273158,1.13111923,96201.0,96200.0,0.85885141]
[1733020273372,1.13111923,96201.0,96200.0,0.83806141]
[1733020273588,1.13111923,96201.0,96200.0,0.79648141]
[1733020274019,1.13111923,96201.0,96200.0,0.73411141]
[1733020274247,1.13111923,96201.0,96200.0,0.69253141]
[1733020274460,1.13111923,96201.0,96200.0,0.64156499]
[1733020274681,1.13111923,96201.0,96200.0,0.62782867]
[1733020274897,1.13111923,96201.0,96200.0,0.43341414]
[1733020275358,1.13111923,96201.0,96200.0,0.41262414]
[1733020275791,1.13111923,96201.0,96200.0,0.39183414]
[1733020276004,1.13111923,96201.0,96200.0,0.35025414]
[1733020276216,1.13111923,96201.0,96200.0,0.30867414]
[1733020276449,1.13111923,96201.0,96200.0,0.30409442]
[1733020276704,0.520764,96198.0,96197.0,0.02217453]
[1733020276932,0.03996,96194.0,96193.0,0.05402372]
[1733020277156,0.22399672,96194.0,96193.0,0.05402372]
[1733020277378,0.2221579,96194.0,96193.0,0.05862049]
[1733020277598,0.24725853,96194.0,96193.0,0.00268624]
[1733020277817,0.24725853,96194.0,96193.0,9.9e-07]
[1733020278280,0.18996,96192.0,96174.0,0.0008634]
[1733020278508,0.23365081,96192.0,96174.0,0.0008634]
[1733020278735,0.23181199,96192.0,96174.0,0.0008634]
[1733020279389,0.2221579,96192.0,96174.0,0.0008634]
[1733020279611,0.2291579,96192.0,96191.0,0.0012]
[1733020281057,0.2331579,96192.0,96191.0,0.0012]
[1733020281614,0.2331579,96192.0,96191.0,1e-06]
[1733020281615,0.7811579,96192.0,96191.0,1e-06]
[1733020282161,0.73796,96190.0,96189.0,0.096041]
[1733020282365,0.94840574,96190.0,96189.0,0.096041]
[1733020283041,0.85581187,96190.0,96189.0,0.096041]
[1733020283330,0.87093621,96190.0,96189.0,0.096041]
[1733020283788,0.79493621,96190.0,96189.0,0.096041]
[1733020284865,0.80093621,96190.0,96189.0,0.097041]
[1733020285290,0.78097621,96190.0,96189.0,0.097041]
[1733020285978,0.79093621,96190.0,96189.0,0.097041]
[1733020286188,0.75873831,96190.0,96189.0,0.097041]
[1733020286396,0.74908434,96190.0,96189.0,0.097041]
[1733020287464,0.20108434,96190.0,96189.0,0.097041]
[1733020287675,0.20292316,96190.0,96189.0,0.097041]
[1733020288157,0.23509579,96190.0,96189.0,0.097041]
[1733020288363,0.23325697,96190.0,96189.0,0.097041]
[1733020288990,0.24325697,96190.0,96189.0,0.097041]
[1733020289211,0.24325697,96190.0,96189.0,0.001]